{"text_format":"1","workbook":"xlsx","n_sheets":1,"sheets":["Form_44"],"not_rendered":{"charts":0,"images":2,"macros":1,"external_links":2,"defined_names":13,"comments":1,"pivot_tables":0},"unopened":[],"bounds":{"document_bytes":16777216,"sheet_cells":100000,"rows_first":2000,"rows_last":500,"rows_between":2000,"halvings":0,"cell_chars":16384,"cell_head_chars":4096},"cells_cut":0,"cells_raw":0,"read":"whole","date_system":"1900"}

{"sheet":"Form_44","index":0,"n_rows":31,"n_cols":30,"rows_kept":31,"cut":false,"hidden":false,"merged":[[30,0,30,11],[30,12,30,18],[1,0,1,18],[7,14,10,14],[7,15,10,15],[7,16,10,16],[7,1,10,1],[27,1,27,18],[7,2,8,2],[2,0,2,18],[3,0,3,18],[4,0,4,18],[28,0,29,1],[28,2,29,11],[28,12,29,15],[28,16,29,18],[5,0,5,18],[6,0,6,18],[22,2,22,18],[25,1,25,18],[26,1,26,18],[7,17,10,17],[7,18,10,18],[7,3,7,12],[20,0,20,16],[23,1,23,18],[7,0,10,0],[7,13,10,13]]}
[null,null,null,null,null,null,null,null,null,null,null,null,null,null,null,null,null,"ikfjJfed foi=&44"]
["jktLFkku ljdkj\nçkfof/kd f'k{kk e.My] jktLFkku] tks/kiqj \nijh{kk l= 2020&21 ¼bath] okf\"kZd Lis'ky½",null,null,null,null,null,null,null,null,null,null,null,null,null,null,null,null,null,null,null,null,null,null,null,0,null,null,null,0,11]
["ijh{kk  dsUnz@laLFkku dk uke dsUnz la[;k ,oa iwjk irk --------------------------------------------------------------------------------------------------------------------------------------------------------------------------                 ijh{kk dsUnz dksM+ ------------------------------------------------------------------",null,null,null,null,null,null,null,null,null,null,null,null,null,null,null,null,null,null,null,null,null,null,null,1,null,null,null,1,12]
["ijh{kk dsUnz@laLFkku ds cSad dk uke ---------------------------------------------------------------------------------------------------------- [kkrk la[;k ----------------------------------------------------------------------           laLFkku dk isu uEcj ----------------------------------------  vkbZ,Q,llh dksM ----------------------------------------",null,null,null,null,null,null,null,null,null,null,null,null,null,null,null,null,null,null,null,null,null,null,null,2,null,null,null,2,13]
[null,null,null,null,null,null,null,null,null,null,null,null,null,null,null,null,null,null,null,null,null,null,null,null,null,null,null,null,null,14]
["¼1½ dkWye dksM es ijh{kk dsUnz v/kh{kd gsrq 11] vfrfjDr ijh{kk dsUnzz  v/kh{kd gsrq 12] ijh{kk oh{kd gsrq 13] Eak=kyf;d gsrq 14 ,oa prqFkZ Js.kh deZpkjh gsrq 15 vafdr djsaA",null,null,null,null,null,null,null,null,null,null,null,null,null,null,null,null,null,null,null,null,null,null,null,null,null,null,null,null,15]
["¼2½ fnukad okys dkWye esa mifLFkfr fnol ds fnu 1 vafdr djsa vuqifLFfr ij 0 vafdr djsaA dqy jkf'k okys dkWye  esa x.kuk Lor% gh gksxhA vr% bl dkWye esa dqN vafdr ugha djsA"]
["SN.","Officer/Employee Name in Capital Letters with Designation\n",null,"Exam Date",null,null,null,null,null,null,null,null,null,"EXTRA-BEFORE","EXTRA-AFTER","TOTAL SESSIONS","RATE","TOTAL AMOUNT","SIGNATURE"]
[null,null,null,"2021-12-29","2021-12-30","2021-12-31","2022-01-01","2022-01-03","2022-01-04","2022-01-05","2022-01-06","2022-01-07","2022-01-08"]
[null,null,"STUDENT STRENGTH"]
[null,null,"CODE"," "," "," "," "," "," "," "," "," "," "]
[{"$f":"IF(B12=\"\",\"\",1)","v":""},null,null,null,null,null,null,null,null,null,null,null,null,null,null,{"$f":"IF(OR(C12=14,C12=15),SUM(D12:O12),SUM(D12:M12))","v":0},null,{"$f":"IF(C12=\"\",0,IF(B12=\"\",0,IF(C12=11,P12*100,IF(C12=12,P12*75,IF(C12=13,P12*70,IF(C12=14,P12*40,IF(C12=15,P12*30)))))))","v":0}]
[{"$f":"IF(B13=\"\",\"\",A12+1)","v":""},null,null,null,null,null,null,null,null,null,null,null,null,null,null,0,null,0]
[{"$f":"IF(B14=\"\",\"\",A13+1)","v":""},null,null,null,null,null,null,null,null,null,null,null,null,null,null,0,null,0]
["",null,null,null,null,null,null,null,null,null,null,null,null,null,null,0,null,0]
["",null,null,null,null,null,null,null,null,null,null,null,null,null,null,0,null,0]
["",null,null,null,null,null,null,null,null,null,null,null,null,null,null,0,null,0]
[null,null,null,null,null,null,null,null,null,null,null,null,null,null,null,0,null,0]
[null,null,null,null,null,null,null,null,null,null,null,null,null,null,null,0,null,0]
[null,null,null,null,null,null,null,null,null,null,null,null,null,null,null,0,null,0]
["Grand Total",null,null,null,null,null,null,null,null,null,null,null,null,null,null,null,null,{"$f":"SUM(R12:R20)","v":0}]
[null,"dqy :Ik;s vadks esa",{"$f":"+R21","v":0}]
[null,"dqy :Ik;s 'kCnksa esa ",{"$f":"IF(R21>0, SUBSTITUTE(spellnumber(R21),\"Dollars and No Cents\",\"only\"),\"Rupees ….Nil ….\")","v":"Rupees ….Nil …."}]
[null,"No.                                              e.My dk;kZy; ç;ksxkFkZ\nfnukad                                               çekf.kr ,oa ikfjr \n\n"]
["izek.k i=%&"]
[1,"izekf.kr fd;k tkrk gS fd izkfof/kd f'k{kk e.My] jktFkku] tks/kiqj ijh{kk ckcr~ le;&le; ij izlkfjr funsZ'k ;Fkk ijh{kk v/kh{kd funsZ'k iqfLrwdk dh ikyuk djrs gq, fu/kkZfjr ekin.M vuqlkj dkfeZdksa dh lsok,as izkIr djrs gq, ikfjJfed nkok funsZ'kkuqlkj vko';d foi=ksa dks layXu djrs gq, izLrqr fd;k x;k gSA"]
[2,"Hkqxrku gsrq ;g fcy izFke ckj izLrqr x;k gSA"]
[3,"Hkqxrku forj.k Ik'pkr izkfIr jlhn e.My dks fHktok nh tk;sxhA"]
["izHkkjh vf/kdkjh",null,"izHkkjh",null,null,null,null,null,null,null,null,null,"fyfid",null,null,null,"iz/kkukpk;Z gLrk{kj e; lhy"]
[]
["la;qDr funs'kd ¼jftLVªkj½",null,null,null,null,null,null,null,null,null,null,null,"dk;kZy;k/;{k"]